[Event "Live Chess"]
[Site "Chess.com"]
[Date "2023.05.21"]
[Round "-"]
[White "KeithArkell"]
[Black "diana21strabt"]
[Result "1-0"]
[WhiteElo "2555"]
[BlackElo "1718"]
[TimeControl "300"]
[EndTime "0:06:28 PDT"]
[Termination "KeithArkell won by resignation"]

1. d4 {[%clk 0:04:56.9]} 1... Nf6 {[%clk 0:04:57.1]} 2. Nf3 {[%clk 0:04:56.2]}
2... g6 {[%clk 0:04:56]} 3. c4 {[%clk 0:04:55.3]} 3... Bg7 {[%clk 0:04:54.9]} 4.
g3 {[%clk 0:04:54.6]} 4... O-O {[%clk 0:04:53.7]} 5. Nc3 {[%clk 0:04:53.7]} 5...
e6 {[%clk 0:04:52.6]} 6. Bg2 {[%clk 0:04:52]} 6... d5 {[%clk 0:04:51.3]} 7. cxd5
{[%clk 0:04:51]} 7... Nxd5 {[%clk 0:04:50.2]} 8. O-O {[%clk 0:04:49.3]} 8... c6
{[%clk 0:04:45.1]} 9. Bg5 {[%clk 0:04:47.4]} 9... Bf6 {[%clk 0:04:40.8]} 10.
Bxf6 {[%clk 0:04:45.2]} 10... Qxf6 {[%clk 0:04:39.7]} 11. e4 {[%clk 0:04:41.4]}
11... Nxc3 {[%clk 0:04:38.1]} 12. bxc3 {[%clk 0:04:40.4]} 12... Nd7 {[%clk
0:04:31.9]} 13. e5 {[%clk 0:04:37.5]} 13... Qe7 {[%clk 0:04:25.9]} 14. Qd2
{[%clk 0:04:35.3]} 14... Nb6 {[%clk 0:04:17.4]} 15. Rfe1 {[%clk 0:04:30.4]}
15... Nc4 {[%clk 0:04:12.8]} 16. Qh6 {[%clk 0:04:28.8]} 16... f6 {[%clk
0:04:03.8]} 17. exf6 {[%clk 0:04:27.3]} 17... Rxf6 {[%clk 0:04:02.5]} 18. Re2
{[%clk 0:04:23.8]} 18... Bd7 {[%clk 0:03:57.9]} 19. Rae1 {[%clk 0:04:22.1]}
19... Raf8 {[%clk 0:03:55.9]} 20. Ng5 {[%clk 0:04:13.5]} 20... Nd6 {[%clk
0:03:40.8]} 21. Bh3 {[%clk 0:03:52.7]} 21... Nf5 {[%clk 0:03:37.1]} 22. Bxf5
{[%clk 0:03:50]} 22... gxf5 {[%clk 0:03:35.6]} 23. Qh4 {[%clk 0:03:41]} 23...
Re8 {[%clk 0:03:02.7]} 24. Nf3 {[%clk 0:03:37.7]} 24... Rf7 {[%clk 0:02:46.5]}
25. Qxe7 {[%clk 0:03:33.6]} 25... Rfxe7 {[%clk 0:02:45]} 26. Ne5 {[%clk
0:03:32.6]} 26... Bc8 {[%clk 0:02:42.7]} 27. Nc4 {[%clk 0:03:29.8]} 27... Rd8
{[%clk 0:02:38]} 28. a4 {[%clk 0:03:26.3]} 28... Kf7 {[%clk 0:02:36.7]} 29. a5
{[%clk 0:03:25.4]} 29... Kf6 {[%clk 0:02:29.6]} 30. Ne5 {[%clk 0:03:22.6]} 30...
Rd5 {[%clk 0:02:24.6]} 31. a6 {[%clk 0:03:21.4]} 31... bxa6 {[%clk 0:02:21.3]}
32. Nxc6 {[%clk 0:03:14.5]} 32... Rc7 {[%clk 0:02:20]} 33. Nb4 {[%clk
0:03:13.5]} 33... Ra5 {[%clk 0:02:14.2]} 34. Rc2 {[%clk 0:02:55.5]} 34... Ra3
{[%clk 0:02:11.3]} 35. Rec1 {[%clk 0:02:51.8]} 35... a5 {[%clk 0:02:10.2]} 36.
Nd3 {[%clk 0:02:50.7]} 36... Ba6 {[%clk 0:02:05.7]} 37. Nc5 {[%clk 0:02:49.6]}
37... Bc4 {[%clk 0:01:55.9]} 38. Re1 {[%clk 0:02:46.4]} 38... Rc6 {[%clk
0:01:46.8]} 39. Nd7+ {[%clk 0:02:29.3]} 39... Ke7 {[%clk 0:01:41.7]} 40. Ne5
{[%clk 0:02:24]} 40... Rc7 {[%clk 0:01:35.5]} 41. Nxc4 {[%clk 0:02:20.4]} 41...
Rxc4 {[%clk 0:01:34.2]} 42. Rce2 {[%clk 0:02:19.7]} 42... Rc6 {[%clk 0:01:31.3]}
43. d5 {[%clk 0:02:18.5]} 43... Rd6 {[%clk 0:01:27.5]} 44. Rxe6+ {[%clk
0:02:15.8]} 44... Rxe6 {[%clk 0:01:26.4]} 45. Rxe6+ {[%clk 0:02:14.9]} 45... Kd7
{[%clk 0:01:25.2]} 46. c4 {[%clk 0:02:14.1]} 46... Rc3 {[%clk 0:01:23]} 47. Ra6
{[%clk 0:02:10.5]} 47... Rxc4 {[%clk 0:01:21.1]} 48. Rxa7+ {[%clk 0:02:07.2]}
48... Kd6 {[%clk 0:01:19.9]} 49. Rxa5 {[%clk 0:02:06.4]} 49... Rc5 {[%clk
0:01:15]} 50. Ra6+ {[%clk 0:02:05.5]} 50... Kxd5 {[%clk 0:01:13.8]} 51. Ra7
{[%clk 0:02:04.2]} 51... h6 {[%clk 0:01:09.6]} 52. Rd7+ {[%clk 0:02:01.8]} 52...
Ke6 {[%clk 0:01:08]} 53. Rh7 {[%clk 0:02:00.3]} 53... f4 {[%clk 0:01:00.6]} 54.
Rxh6+ {[%clk 0:01:57.4]} 54... Kf5 {[%clk 0:00:59.7]} 55. Rh5+ {[%clk
0:01:55.7]} 1-0

[Event "Live Chess"]
[Site "Chess.com"]
[Date "2023.05.21"]
[Round "-"]
[White "chessfiction"]
[Black "YrrriKharkiv"]
[Result "1-0"]
[WhiteElo "2350"]
[BlackElo "2049"]
[TimeControl "300"]
[EndTime "0:06:32 PDT"]
[Termination "chessfiction won on time"]

1. e4 {[%clk 0:04:58.5]} 1... Nf6 {[%clk 0:04:57.5]} 2. e5 {[%clk 0:04:57.6]}
2... Nd5 {[%clk 0:04:56.5]} 3. Nc3 {[%clk 0:04:57.5]} 3... Nb6 {[%clk
0:04:55.1]} 4. a4 {[%clk 0:04:56.2]} 4... a5 {[%clk 0:04:53.7]} 5. Nf3 {[%clk
0:04:52.7]} 5... d6 {[%clk 0:04:53.2]} 6. d4 {[%clk 0:04:52.1]} 6... g6 {[%clk
0:04:52]} 7. h4 {[%clk 0:04:49.3]} 7... h5 {[%clk 0:04:50.3]} 8. Bd3 {[%clk
0:04:47.4]} 8... Bg7 {[%clk 0:04:47.3]} 9. Bg5 {[%clk 0:04:43.4]} 9... Nc6
{[%clk 0:04:41.4]} 10. Qe2 {[%clk 0:04:39.9]} 10... Bg4 {[%clk 0:04:36.1]} 11.
Bb5 {[%clk 0:04:36.6]} 11... O-O {[%clk 0:04:22.8]} 12. O-O-O {[%clk 0:04:34.7]}
12... d5 {[%clk 0:03:50.9]} 13. Qe3 {[%clk 0:04:24.3]} 13... Nc4 {[%clk
0:03:39.8]} 14. Bxc4 {[%clk 0:04:19.7]} 14... dxc4 {[%clk 0:03:39.2]} 15. d5
{[%clk 0:04:16.9]} 15... Bxf3 {[%clk 0:03:31.9]} 16. dxc6 {[%clk 0:04:14.6]}
16... Bxd1 {[%clk 0:03:28.1]} 17. Rxd1 {[%clk 0:04:14.5]} 17... Qc8 {[%clk
0:03:25.1]} 18. Nd5 {[%clk 0:04:07]} 18... Kh7 {[%clk 0:03:04]} 19. Nxe7 {[%clk
0:04:04.6]} 19... Qe6 {[%clk 0:02:57]} 20. cxb7 {[%clk 0:04:01.9]} 20... Rab8
{[%clk 0:02:51.1]} 21. Qf3 {[%clk 0:04:00.1]} 21... Qxe5 {[%clk 0:02:47.3]} 22.
c3 {[%clk 0:03:56.2]} 22... Qe6 {[%clk 0:02:24.3]} 23. Nc6 {[%clk 0:03:35.4]}
23... Rxb7 {[%clk 0:02:14.4]} 24. Nd8 {[%clk 0:03:31.2]} 24... Rxd8 {[%clk
0:02:12.9]} 25. Rxd8 {[%clk 0:03:27.8]} 25... Qb6 {[%clk 0:02:09.8]} 26. Rd2
{[%clk 0:03:21.2]} 26... c5 {[%clk 0:02:07.1]} 27. g4 {[%clk 0:03:14.5]} 27...
hxg4 {[%clk 0:01:59.1]} 28. Qxg4 {[%clk 0:03:14.4]} 28... Qe6 {[%clk 0:01:54.2]}
29. Qd1 {[%clk 0:03:01]} 29... Bh6 {[%clk 0:01:46.3]} 30. Re2 {[%clk 0:02:52.3]}
30... Qf5 {[%clk 0:01:44.2]} 31. Qd2 {[%clk 0:02:45.9]} 31... Bxg5 {[%clk
0:01:42.3]} 32. hxg5 {[%clk 0:02:45.8]} 32... Rd7 {[%clk 0:01:29.7]} 33. Qe3
{[%clk 0:02:35.6]} 33... Qg4 {[%clk 0:01:25.8]} 34. f3 {[%clk 0:02:30.3]} 34...
Qh3 {[%clk 0:01:17.5]} 35. Qf2 {[%clk 0:02:06.1]} 35... Kg7 {[%clk 0:01:03.6]}
36. Qe3 {[%clk 0:01:48.3]} 36... Qf5 {[%clk 0:00:52.8]} 37. Qe5+ {[%clk
0:01:45.9]} 37... Qxe5 {[%clk 0:00:49.4]} 38. Rxe5 {[%clk 0:01:45.8]} 38... Rc7
{[%clk 0:00:48.9]} 39. f4 {[%clk 0:01:39.4]} 39... f6 {[%clk 0:00:48.4]} 40.
gxf6+ {[%clk 0:01:38.7]} 40... Kxf6 {[%clk 0:00:47.2]} 41. Kd2 {[%clk 0:01:38]}
41... Rc6 {[%clk 0:00:44]} 42. Rd5 {[%clk 0:01:32.3]} 42... Ke6 {[%clk
0:00:38.5]} 43. Rg5 {[%clk 0:01:30.9]} 43... Kf6 {[%clk 0:00:37.4]} 44. Ke3
{[%clk 0:01:29.7]} 44... Re6+ {[%clk 0:00:34.4]} 45. Kf3 {[%clk 0:01:28.7]}
45... Rc6 {[%clk 0:00:33.8]} 46. Ke4 {[%clk 0:01:26]} 46... Rc8 {[%clk 0:00:26]}
47. Kd5 {[%clk 0:01:23.9]} 47... Rc7 {[%clk 0:00:23.8]} 48. Kxc4 {[%clk
0:01:22.9]} 48... Re7 {[%clk 0:00:21.1]} 49. Rxc5 {[%clk 0:01:21.3]} 49... Re4+
{[%clk 0:00:20.1]} 50. Kb5 {[%clk 0:01:18.3]} 50... Rxf4 {[%clk 0:00:19.4]} 51.
Kxa5 {[%clk 0:01:17.2]} 51... Rf5 {[%clk 0:00:18.9]} 52. b4 {[%clk 0:01:11.7]}
52... g5 {[%clk 0:00:17]} 53. Rxf5+ {[%clk 0:01:08.5]} 53... Kxf5 {[%clk
0:00:15.6]} 54. b5 {[%clk 0:01:07.7]} 54... g4 {[%clk 0:00:13.3]} 55. b6 {[%clk
0:01:06.9]} 55... g3 {[%clk 0:00:13.1]} 56. b7 {[%clk 0:01:05.8]} 56... g2
{[%clk 0:00:12.9]} 57. b8=Q {[%clk 0:01:05.2]} 57... g1=Q {[%clk 0:00:12.3]} 58.
Qb5+ {[%clk 0:01:02.7]} 58... Ke4 {[%clk 0:00:07.6]} 59. Qb4+ {[%clk 0:01:00]}
59... Kf5 {[%clk 0:00:06.2]} 60. Qf8+ {[%clk 0:00:55.9]} 60... Ke6 {[%clk
0:00:04.8]} 61. Qe8+ {[%clk 0:00:53.2]} 61... Kd5 {[%clk 0:00:00.4]} 62. Qd7+
{[%clk 0:00:51]} 1-0

[Event "Live Chess"]
[Site "Chess.com"]
[Date "2023.05.21"]
[Round "-"]
[White "kerryman1969"]
[Black "toxic_rabbit"]
[Result "1/2-1/2"]
[WhiteElo "1167"]
[BlackElo "1988"]
[TimeControl "300"]
[EndTime "0:06:33 PDT"]
[Termination "Game drawn by repetition"]

1. d4 {[%clk 0:04:48.7]} 1... c5 {[%clk 0:04:58.4]} 2. d5 {[%clk 0:04:44.9]}
2... Nf6 {[%clk 0:04:56.3]} 3. c4 {[%clk 0:04:41.2]} 3... b5 {[%clk 0:04:55]} 4.
e3 {[%clk 0:04:32.9]} 4... bxc4 {[%clk 0:04:51.7]} 5. Bxc4 {[%clk 0:04:29.2]}
5... d6 {[%clk 0:04:51.6]} 6. Nf3 {[%clk 0:04:24.7]} 6... g6 {[%clk 0:04:50.5]}
7. O-O {[%clk 0:04:20.8]} 7... Bg7 {[%clk 0:04:37.7]} 8. Nc3 {[%clk 0:04:16.3]}
8... Bd7 {[%clk 0:04:33.8]} 9. Bd2 {[%clk 0:04:12.5]} 9... Bg4 {[%clk
0:04:32.3]} 10. e4 {[%clk 0:04:07.5]} 10... Bxf3 {[%clk 0:04:30.1]} 11. Qxf3
{[%clk 0:04:03.9]} 11... Nbd7 {[%clk 0:04:30]} 12. Qe2 {[%clk 0:03:58]} 12...
O-O {[%clk 0:04:27.4]} 13. f4 {[%clk 0:03:54.7]} 13... Ne8 {[%clk 0:04:14.2]}
14. Rae1 {[%clk 0:03:40.7]} 14... Nc7 {[%clk 0:03:52.7]} 15. Bb3 {[%clk
0:03:34.3]} 15... Nb6 {[%clk 0:03:26.1]} 16. Na4 {[%clk 0:03:25.9]} 16... Qd7
{[%clk 0:03:19.9]} 17. Nxb6 {[%clk 0:03:22.8]} 17... axb6 {[%clk 0:03:19.8]} 18.
Bc3 {[%clk 0:03:19.4]} 18... b5 {[%clk 0:03:13.8]} 19. Bxg7 {[%clk 0:03:14.3]}
19... Kxg7 {[%clk 0:03:12.4]} 20. e5 {[%clk 0:03:09.7]} 20... c4 {[%clk
0:03:02.9]} 21. Bc2 {[%clk 0:03:03.3]} 21... Nxd5 {[%clk 0:02:53.8]} 22. Be4
{[%clk 0:02:58.6]} 22... e6 {[%clk 0:02:43.9]} 23. Qf3 {[%clk 0:02:49.2]} 23...
dxe5 {[%clk 0:02:42]} 24. fxe5 {[%clk 0:02:45.3]} 24... Rad8 {[%clk 0:02:34.6]}
25. Rd1 {[%clk 0:02:25.1]} 25... Qa7+ {[%clk 0:02:30.8]} 26. Kh1 {[%clk
0:02:21.1]} 26... Ne3 {[%clk 0:02:27.1]} 27. Rxd8 {[%clk 0:02:15.4]} 27... Rxd8
{[%clk 0:02:27]} 28. Qf6+ {[%clk 0:02:11]} 28... Kh6 {[%clk 0:02:20.2]} 29. Qh4+
{[%clk 0:02:02]} 29... Kg7 {[%clk 0:02:16.3]} 30. Qf6+ {[%clk 0:01:51.8]} 30...
Kh6 {[%clk 0:02:13.9]} 31. Qh4+ {[%clk 0:01:48.9]} 31... Kg7 {[%clk 0:02:11.8]}
32. Qf6+ {[%clk 0:01:45.1]} 1/2-1/2

[Event "Live Chess"]
[Site "Chess.com"]
[Date "2023.05.21"]
[Round "-"]
[White "DaveL5678"]
[Black "profpirate4"]
[Result "0-1"]
[WhiteElo "1006"]
[BlackElo "1265"]
[TimeControl "300"]
[EndTime "0:07:07 PDT"]
[Termination "profpirate4 won by checkmate"]

1. e4 {[%clk 0:04:55.8]} 1... c5 {[%clk 0:04:58.8]} 2. b3 {[%clk 0:04:53.6]}
2... d6 {[%clk 0:04:55.4]} 3. Bb2 {[%clk 0:04:51.9]} 3... Nc6 {[%clk 0:04:54.3]}
4. Nc3 {[%clk 0:04:48]} 4... a6 {[%clk 0:04:50.7]} 5. f4 {[%clk 0:04:38]} 5...
Nf6 {[%clk 0:04:48.3]} 6. Nf3 {[%clk 0:04:33.9]} 6... b5 {[%clk 0:04:46.4]} 7.
e5 {[%clk 0:04:25.4]} 7... dxe5 {[%clk 0:04:42.8]} 8. fxe5 {[%clk 0:04:23.8]}
8... Ng4 {[%clk 0:04:36.9]} 9. Qe2 {[%clk 0:04:11]} 9... Nd4 {[%clk 0:04:26.6]}
10. Nxd4 {[%clk 0:04:06.7]} 10... cxd4 {[%clk 0:04:24.6]} 11. Nd5 {[%clk
0:04:01.5]} 11... Qxd5 {[%clk 0:04:22.2]} 12. h3 {[%clk 0:03:43.6]} 12... Nxe5
{[%clk 0:04:21.1]} 13. O-O-O {[%clk 0:03:28]} 13... e6 {[%clk 0:04:11]} 14. Qh5
{[%clk 0:03:14.9]} 14... Bb7 {[%clk 0:04:00.2]} 15. Qh4 {[%clk 0:02:57.8]} 15...
Bc5 {[%clk 0:03:37.5]} 16. Re1 {[%clk 0:02:46.7]} 16... Rc8 {[%clk 0:03:28.2]}
17. Qg3 {[%clk 0:02:37.2]} 17... Ng6 {[%clk 0:02:45.2]} 18. h4 {[%clk
0:02:11.9]} 18... O-O {[%clk 0:02:43.5]} 19. Bd3 {[%clk 0:01:59.9]} 19... e5
{[%clk 0:02:35.3]} 20. Be4 {[%clk 0:01:42.5]} 20... Qd7 {[%clk 0:02:30.1]} 21.
Bxg6 {[%clk 0:01:34.7]} 21... fxg6 {[%clk 0:02:25.5]} 22. Qxe5 {[%clk
0:01:28.4]} 22... Rfe8 {[%clk 0:02:19.8]} 23. Qg3 {[%clk 0:01:17.1]} 23... Rxe1+
{[%clk 0:02:14.8]} 24. Rxe1 {[%clk 0:01:15.5]} 24... Qc6 {[%clk 0:01:58.9]} 25.
Qe5 {[%clk 0:01:03.2]} 25... Bd6 {[%clk 0:01:51.8]} 26. Qe6+ {[%clk 0:00:58.5]}
26... Kh8 {[%clk 0:01:47]} 27. Bxd4 {[%clk 0:00:54.7]} 27... Qxc2# {[%clk
0:01:43.7]} 0-1

[Event "Live Chess"]
[Site "Chess.com"]
[Date "2023.05.21"]
[Round "-"]
[White "Tushinskiy"]
[Black "EdenHazard8"]
[Result "1-0"]
[WhiteElo "2169"]
[BlackElo "1960"]
[TimeControl "300"]
[EndTime "0:07:21 PDT"]
[Termination "Tushinskiy won by resignation"]

1. d4 {[%clk 0:04:55.2]} 1... c6 {[%clk 0:04:59.9]} 2. c3 {[%clk 0:04:54.6]}
2... d5 {[%clk 0:04:59.8]} 3. Bf4 {[%clk 0:04:48.3]} 3... Bf5 {[%clk 0:04:57.8]}
4. e3 {[%clk 0:04:45.7]} 4... e6 {[%clk 0:04:56.1]} 5. Nd2 {[%clk 0:04:43.7]}
5... Bd6 {[%clk 0:04:55.6]} 6. Bg3 {[%clk 0:04:40.6]} 6... Nf6 {[%clk
0:04:53.9]} 7. Ngf3 {[%clk 0:04:39]} 7... Ne4 {[%clk 0:04:51.8]} 8. Nxe4 {[%clk
0:04:37.4]} 8... Bxe4 {[%clk 0:04:51.7]} 9. Bd3 {[%clk 0:04:35.7]} 9... Bxd3
{[%clk 0:04:50.2]} 10. Qxd3 {[%clk 0:04:34.4]} 10... h6 {[%clk 0:04:46.2]} 11.
e4 {[%clk 0:04:32.9]} 11... dxe4 {[%clk 0:04:44.2]} 12. Qxe4 {[%clk 0:04:31.2]}
12... Bxg3 {[%clk 0:04:42.3]} 13. hxg3 {[%clk 0:04:29.6]} 13... Nd7 {[%clk
0:04:42.2]} 14. Qe2 {[%clk 0:04:27.4]} 14... Nf6 {[%clk 0:04:40.7]} 15. O-O-O
{[%clk 0:04:26.1]} 15... Qa5 {[%clk 0:04:38.8]} 16. Kb1 {[%clk 0:04:24]} 16...
O-O-O {[%clk 0:04:33.2]} 17. Ne5 {[%clk 0:04:19.5]} 17... Rhf8 {[%clk
0:04:29.5]} 18. a3 {[%clk 0:04:14.7]} 18... Nd7 {[%clk 0:04:27.2]} 19. Nc4
{[%clk 0:04:12.1]} 19... Qd5 {[%clk 0:04:21.7]} 20. Rh5 {[%clk 0:04:08.7]} 20...
f5 {[%clk 0:04:19.4]} 21. f3 {[%clk 0:04:03.1]} 21... Nf6 {[%clk 0:04:16.9]} 22.
Rhh1 {[%clk 0:04:00.1]} 22... Rfe8 {[%clk 0:04:15]} 23. Rhe1 {[%clk 0:03:58.1]}
23... Nh5 {[%clk 0:04:10.9]} 24. Ne3 {[%clk 0:03:51.8]} 24... Qd7 {[%clk
0:04:08.5]} 25. Qf2 {[%clk 0:03:50.1]} 25... g5 {[%clk 0:04:06.1]} 26. Nc4
{[%clk 0:03:47.7]} 26... f4 {[%clk 0:04:03.9]} 27. g4 {[%clk 0:03:45.7]} 27...
Qh7+ {[%clk 0:04:02.5]} 28. Ka1 {[%clk 0:03:42.8]} 28... Nf6 {[%clk 0:03:59.8]}
29. Re5 {[%clk 0:03:37.3]} 29... Nd5 {[%clk 0:03:56.5]} 30. Rde1 {[%clk
0:03:33.4]} 30... Qg6 {[%clk 0:03:55]} 31. Qd2 {[%clk 0:03:27.5]} 31... Rd7
{[%clk 0:03:48.3]} 32. R1e4 {[%clk 0:03:18.8]} 32... b5 {[%clk 0:03:40.8]} 33.
Na5 {[%clk 0:03:15.1]} 33... Rd6 {[%clk 0:03:36.5]} 34. Qe2 {[%clk 0:03:06.7]}
34... Ne3 {[%clk 0:03:34.4]} 35. g3 {[%clk 0:03:03]} 35... Rf8 {[%clk
0:03:24.3]} 36. gxf4 {[%clk 0:02:53.8]} 36... gxf4 {[%clk 0:03:24.2]} 37. Rc5
{[%clk 0:02:47.7]} 37... Kd7 {[%clk 0:03:20.8]} 38. Nb3 {[%clk 0:02:41.9]} 38...
Rd5 {[%clk 0:03:06.9]} 39. Rxd5+ {[%clk 0:02:38.1]} 39... exd5 {[%clk
0:03:06.8]} 40. Nc5+ {[%clk 0:02:37.1]} 40... Kd8 {[%clk 0:03:03.9]} 41. Ne6+
{[%clk 0:02:33.8]} 41... Kc8 {[%clk 0:03:01.1]} 42. Nxf8 {[%clk 0:02:32.2]} 1-0

[Event "Live Chess"]
[Site "Chess.com"]
[Date "2023.05.21"]
[Round "-"]
[White "Long1968"]
[Black "Vitalii18a"]
[Result "0-1"]
[WhiteElo "997"]
[BlackElo "1106"]
[TimeControl "300"]
[EndTime "0:07:57 PDT"]
[Termination "Vitalii18a won on time"]

1. e4 {[%clk 0:04:55.2]} 1... e5 {[%clk 0:04:58.9]} 2. f4 {[%clk 0:04:52.4]}
2... d6 {[%clk 0:04:57.1]} 3. Nf3 {[%clk 0:04:49.6]} 3... exf4 {[%clk
0:04:53.4]} 4. Bc4 {[%clk 0:04:47]} 4... Be7 {[%clk 0:04:51.7]} 5. O-O {[%clk
0:04:44.3]} 5... Nf6 {[%clk 0:04:43.8]} 6. d4 {[%clk 0:04:41.2]} 6... Nxe4
{[%clk 0:04:30.2]} 7. Qe2 {[%clk 0:04:35.6]} 7... d5 {[%clk 0:04:17.6]} 8. Bd3
{[%clk 0:04:26.2]} 8... Bg5 {[%clk 0:04:02.6]} 9. Nxg5 {[%clk 0:04:13.9]} 9...
Qxg5 {[%clk 0:03:59.6]} 10. Bxf4 {[%clk 0:03:58.6]} 10... Qg6 {[%clk 0:03:52.4]}
11. Re1 {[%clk 0:03:40.5]} 11... O-O {[%clk 0:03:43]} 12. Bxe4 {[%clk 0:03:36]}
12... dxe4 {[%clk 0:03:41.5]} 13. Qxe4 {[%clk 0:03:33.4]} 13... Qxe4 {[%clk
0:03:28.3]} 14. Rxe4 {[%clk 0:03:24.5]} 14... Bf5 {[%clk 0:03:28.2]} 15. Re7
{[%clk 0:03:10.9]} 15... c6 {[%clk 0:03:19.6]} 16. Rxb7 {[%clk 0:03:06.9]} 16...
Na6 {[%clk 0:03:08.3]} 17. c3 {[%clk 0:02:58.7]} 17... Rfe8 {[%clk 0:03:01.7]}
18. Nd2 {[%clk 0:02:45.9]} 18... Re2 {[%clk 0:02:57.4]} 19. Nf3 {[%clk
0:02:22.4]} 19... Be4 {[%clk 0:02:48.1]} 20. Ne5 {[%clk 0:01:59.5]} 20... Rxg2+
{[%clk 0:02:36.8]} 21. Kf1 {[%clk 0:01:56.5]} 21... g5 {[%clk 0:02:10.2]} 22.
Bg3 {[%clk 0:01:41.5]} 22... Bd5 {[%clk 0:02:03.1]} 23. Nxf7 {[%clk 0:01:18]}
23... Bxf7 {[%clk 0:01:52.4]} 24. Kxg2 {[%clk 0:01:13.8]} 24... c5 {[%clk
0:01:38.7]} 25. Re7 {[%clk 0:01:03.1]} 25... cxd4 {[%clk 0:01:32.7]} 26. cxd4
{[%clk 0:00:57.2]} 26... Nb4 {[%clk 0:01:18.6]} 27. Rf1 {[%clk 0:00:46]} 27...
Bxa2 {[%clk 0:01:05.7]} 28. Bd6 {[%clk 0:00:27.4]} 28... Nd5 {[%clk 0:00:44.9]}
29. Rb7 {[%clk 0:00:19.3]} 29... Nf4+ {[%clk 0:00:40.6]} 30. Bxf4 {[%clk
0:00:15]} 30... gxf4 {[%clk 0:00:37.9]} 31. Rxf4 {[%clk 0:00:13.6]} 31... Bb1
{[%clk 0:00:16.8]} 32. Rg4+ {[%clk 0:00:07.4]} 32... Kh8 {[%clk 0:00:15.1]} 33.
Rf4 {[%clk 0:00:00.3]} 33... Rg8+ {[%clk 0:00:13.3]} 0-1

[Event "Live Chess"]
[Site "Chess.com"]
[Date "2023.05.21"]
[Round "-"]
[White "Bot_Boy"]
[Black "Nazarenko_vital"]
[Result "0-1"]
[WhiteElo "324"]
[BlackElo "1631"]
[TimeControl "300"]
[EndTime "0:08:07 PDT"]
[Termination "Nazarenko_vital won by checkmate"]

1. Nf3 {[%clk 0:04:34.7]} 1... Nf6 {[%clk 0:04:43.7]} 2. d4 {[%clk 0:04:30.5]}
2... e6 {[%clk 0:04:40.7]} 3. Nc3 {[%clk 0:04:26.8]} 3... c5 {[%clk 0:04:39.8]}
4. e4 {[%clk 0:04:22.7]} 4... cxd4 {[%clk 0:04:23.5]} 5. Qxd4 {[%clk 0:04:12.7]}
5... Nc6 {[%clk 0:04:22]} 6. Qd1 {[%clk 0:04:03]} 6... d5 {[%clk 0:04:13.8]} 7.
e5 {[%clk 0:03:55.6]} 7... Nd7 {[%clk 0:04:09.8]} 8. Bf4 {[%clk 0:03:30]} 8...
h6 {[%clk 0:03:57.1]} 9. Bb5 {[%clk 0:03:11.7]} 9... a6 {[%clk 0:03:52.2]} 10.
Bxc6 {[%clk 0:03:07.5]} 10... bxc6 {[%clk 0:03:51.2]} 11. Qd2 {[%clk 0:02:48.8]}
11... Bb4 {[%clk 0:03:44.9]} 12. a3 {[%clk 0:02:38]} 12... Be7 {[%clk
0:03:26.7]} 13. O-O-O {[%clk 0:02:27.1]} 13... Qb6 {[%clk 0:03:23.3]} 14. Nb1
{[%clk 0:01:53.4]} 14... Rb8 {[%clk 0:03:19.2]} 15. c3 {[%clk 0:01:42.3]} 15...
Nc5 {[%clk 0:03:14.8]} 16. Nd4 {[%clk 0:00:37.5]} 16... Nd3+ {[%clk 0:02:37.6]}
17. Qxd3 {[%clk 0:00:08.9]} 17... Qxb2# {[%clk 0:02:35.6]} 0-1

[Event "Live Chess"]
[Site "Chess.com"]
[Date "2023.05.21"]
[Round "-"]
[White "Mikhail_Golubev"]
[Black "f4nomore"]
[Result "1-0"]
[WhiteElo "2472"]
[BlackElo "1417"]
[TimeControl "300"]
[EndTime "0:08:24 PDT"]
[Termination "Mikhail_Golubev won by checkmate"]

1. e4 {[%clk 0:04:58.9]} 1... g6 {[%clk 0:04:59.9]} 2. g3 {[%clk 0:04:55.3]}
2... Bg7 {[%clk 0:04:59.8]} 3. Bg2 {[%clk 0:04:54.4]} 3... d6 {[%clk 0:04:58.7]}
4. d4 {[%clk 0:04:53.1]} 4... Nd7 {[%clk 0:04:56.4]} 5. c3 {[%clk 0:04:52.1]}
5... Ngf6 {[%clk 0:04:54.5]} 6. f4 {[%clk 0:04:49.4]} 6... O-O {[%clk
0:04:52.8]} 7. Nd2 {[%clk 0:04:47.3]} 7... a6 {[%clk 0:04:51.4]} 8. Ngf3 {[%clk
0:04:44.5]} 8... b5 {[%clk 0:04:49.1]} 9. O-O {[%clk 0:04:42.7]} 9... Rb8 {[%clk
0:04:47.5]} 10. e5 {[%clk 0:04:40.3]} 10... dxe5 {[%clk 0:04:45.3]} 11. fxe5
{[%clk 0:04:38.2]} 11... Nd5 {[%clk 0:04:36.1]} 12. Ne4 {[%clk 0:04:32.4]} 12...
N7b6 {[%clk 0:04:31.2]} 13. Nc5 {[%clk 0:04:22.3]} 13... Bg4 {[%clk 0:04:17.9]}
14. Nxa6 {[%clk 0:04:18.7]} 14... Ra8 {[%clk 0:04:04.1]} 15. Nc5 {[%clk
0:04:17.6]} 15... Ra7 {[%clk 0:03:58.9]} 16. h3 {[%clk 0:04:11.4]} 16... Bc8
{[%clk 0:03:42.5]} 17. Qe2 {[%clk 0:04:09.3]} 17... Nc4 {[%clk 0:03:31.2]} 18.
e6 {[%clk 0:04:01.3]} 18... fxe6 {[%clk 0:03:24.2]} 19. Nxe6 {[%clk 0:03:56.5]}
19... Bxe6 {[%clk 0:03:17.8]} 20. Qxe6+ {[%clk 0:03:55.2]} 20... Kh8 {[%clk
0:03:16.1]} 21. Ng5 {[%clk 0:03:45]} 21... Rxf1+ {[%clk 0:03:07.4]} 22. Kxf1
{[%clk 0:03:44.4]} 22... Qf8+ {[%clk 0:02:30.9]} 23. Kg1 {[%clk 0:03:26.6]}
23... Nf6 {[%clk 0:02:27.3]} 24. Nf7+ {[%clk 0:02:46.9]} 24... Kg8 {[%clk
0:02:24.6]} 25. Ne5+ {[%clk 0:02:41.2]} 25... Kh8 {[%clk 0:02:21.9]} 26. Nxc4
{[%clk 0:02:40.7]} 26... bxc4 {[%clk 0:02:19.7]} 27. Bf4 {[%clk 0:02:35.8]}
27... Nh5 {[%clk 0:02:02]} 28. Be5 {[%clk 0:02:32.4]} 28... Bxe5 {[%clk
0:01:51.6]} 29. Qxe5+ {[%clk 0:02:31.3]} 29... Qf6 {[%clk 0:01:49.3]} 30. Qb5
{[%clk 0:02:10]} 30... Qa6 {[%clk 0:01:35.5]} 31. Qe8+ {[%clk 0:02:05.1]} 31...
Kg7 {[%clk 0:01:32.4]} 32. Rf1 {[%clk 0:01:56]} 32... Qxa2 {[%clk 0:01:17.3]}
33. Qf8# {[%clk 0:01:53.6]} 1-0